bitfinex/quotes_ETHUSD_20250731
["timestamp","ask_amount","ask_price","bid_price","bid_amount"]
[1753929128384,0.24246721,3851.4,3850.1,0.001]
[1753929128586,5.06982026,3851.7,3850.1,0.001]
[1753929128587,0.27492378,3851.3,3850.1,0.001]
[1753929128888,0.03245657,3851.3,3850.1,0.001]
[1753929129690,0.03245741,3851.2,3850.1,0.001]
[1753929132392,0.2749636,3851.2,3850.1,0.001]
[1753929132591,0.03245741,3851.2,3850.1,0.001]
[1753929132888,0.27496104,3851.2,3850.1,0.001]
[1753929133069,0.03245741,3851.2,3850.1,0.001]
[1753929133790,5.07045303,3851.3,3850.1,0.001]
[1753929135087,0.002,3852.0,3850.1,0.001]
[1753929135291,0.69614613,3852.0,3850.1,0.001]
[1753929135593,0.24258386,3851.9,3850.2,4.86073257]
[1753929135793,0.24258386,3851.8,3850.2,4.86073257]
[1753929135995,0.002,3852.0,3850.2,4.86073257]
[1753929136162,0.002,3852.0,3850.1,0.001]
[1753929136702,0.03445067,3852.0,3850.1,0.001]
[1753929136874,0.24470481,3852.0,3850.1,0.001]
[1753929137069,0.24270481,3851.9,3850.8,4.86073257]
[1753929137274,0.002,3852.0,3850.4,4.86073257]
[1753929138086,0.03445067,3852.0,3850.4,4.86073257]
[1753929138287,4.89518324,3852.0,3850.1,0.001]
[1753929138465,0.24276874,3851.9,3850.1,0.001]
[1753929138663,0.03245235,3851.8,3850.1,0.001]
[1753929140478,4.86073257,3851.6,3850.1,0.001]
[1753929140667,0.27541652,3851.5,3850.1,0.001]
[1753929141367,0.24296164,3851.5,3850.1,0.001]
[1753929142098,0.03245573,3851.4,3850.1,0.001]
[1753929143397,4.86073257,3851.2,3850.1,0.001]
[1753929144470,0.24328547,3851.1,3850.1,0.001]
[1753929144670,4.86073257,3851.2,3850.1,0.001]
[1753929146691,4.86073257,3851.6,3850.1,0.001]
[1753929146905,0.24326111,3851.5,3850.1,0.001]
[1753929147604,4.86073257,3851.2,3850.1,0.001]
[1753929147901,0.03245825,3851.1,3850.1,0.001]
[1753929152332,2.33276262,3852.0,3850.1,0.001]
[1753929152478,0.48653432,3851.9,3850.1,0.001]
[1753929152790,2.33276262,3852.0,3850.1,0.001]
[1753929152791,0.51898667,3851.8,3850.1,0.001]
[1753929152992,0.48653736,3851.7,3850.1,0.001]
[1753929153309,0.2757212,3851.6,3850.1,0.001]
[1753929153516,0.24326716,3851.5,3850.1,0.001]
[1753929153718,0.03245573,3851.4,3850.1,0.001]
[1753929153925,0.27572289,3851.4,3850.1,0.001]
[1753929154216,0.24326716,3851.3,3850.1,0.001]
[1753929154512,0.27572457,3851.2,3850.1,0.001]
[1753929154702,0.03245741,3851.2,3850.1,0.001]
[1753929155005,4.86073257,3851.7,3850.1,0.001]
[1753929155179,0.27576461,3851.6,3850.1,0.001]
[1753929155511,0.24331057,3851.5,3850.1,0.001]
[1753929155688,0.2757663,3851.4,3850.1,0.001]
[1753929155888,0.24331057,3851.3,3850.1,0.001]
[1753929156088,0.27576798,3851.2,3850.1,0.001]
[1753929156289,0.03245741,3851.2,3850.1,0.001]
[1753929157213,0.03245825,3851.1,3850.1,0.001]
[1753929158213,0.24334032,3851.1,3850.1,0.001]
[1753929160603,0.24338802,3851.0,3850.1,0.001]
[1753929160807,4.86073257,3851.2,3850.1,0.001]
[1753929161005,0.24339186,3851.1,3850.1,0.001]
[1753929161499,4.86073257,3850.4,3850.1,0.001]
[1753929161726,0.032465,3850.3,3850.1,0.001]
[1753929162310,0.24343343,3850.3,3850.1,0.001]
[1753929162506,0.03246584,3850.2,3850.1,0.001]
[1753929164230,0.24343343,3850.3,3849.8,0.001]
[1753929164392,0.24343343,3850.2,3849.8,0.001]
[1753929164727,4.86073257,3851.0,3849.8,0.001]
[1753929164917,0.51861645,3850.9,3849.8,0.001]
[1753929165115,0.24307834,3850.8,3849.8,0.001]
[1753929165315,0.27553997,3850.7,3849.8,0.001]
[1753929165624,0.24307834,3850.6,3849.8,0.001]
[1753929165823,0.03245994,3850.9,3849.8,0.001]
[1753929166030,0.24301378,3850.9,3849.8,0.001]
[1753929166530,0.24299002,3850.8,3849.8,0.001]
[1753929166703,0.24299002,3850.7,3849.8,0.001]
[1753929166909,4.86073257,3851.4,3849.8,0.001]
[1753929167224,0.2429789,3851.3,3849.8,0.001]
[1753929168433,0.03245741,3851.2,3849.8,0.001]
[1753929168726,0.2429789,3851.3,3849.8,0.001]
[1753929170000,0.24302275,3851.2,3849.8,0.001]
[1753929170203,0.24302275,3851.1,3849.8,0.001]
[1753929170402,0.24302275,3851.0,3849.8,0.001]
[1753929170631,0.24302275,3850.9,3849.8,0.001]
[1753929170935,5.1977232,3851.4,3849.8,0.001]
[1753929171136,0.24304139,3851.3,3849.8,0.001]
[1753929176409,0.24304139,3851.2,3849.8,0.001]
[1753929176610,0.24304139,3851.1,3849.8,0.001]
[1753929176931,0.24304139,3851.0,3849.8,0.001]
[1753929177239,0.24304139,3850.9,3849.8,0.001]
[1753929177442,5.1977232,3851.4,3849.8,0.001]
[1753929177741,0.24313514,3851.3,3849.8,0.001]
[1753929177929,0.24313448,3851.2,3849.8,0.001]
[1753929178229,0.24313448,3851.1,3849.8,0.001]
[1753929178429,0.24313448,3851.0,3849.8,0.001]
[1753929178624,4.86073257,3850.6,3849.8,0.001]
[1753929179506,0.03246331,3850.5,3849.8,0.001]
[1753929180345,4.86073257,3850.6,3849.8,0.001]
[1753929180545,0.03246331,3850.5,3849.8,0.001]
[1753929181220,0.2756716,3850.5,3849.8,0.001]
[1753929186163,0.61715322,3850.5,3849.8,0.001]
[1753929186324,0.37394493,3850.5,3849.8,0.001]
[1753929186655,0.34148162,3850.5,3849.8,0.001]
[1753929186832,4.86073257,3851.0,3849.8,0.001]
[1753929187034,0.24331793,3850.9,3849.8,0.001]
[1753929187352,0.24332526,3850.8,3849.8,0.001]
[1753929187522,0.24332526,3850.7,3849.8,0.001]
[1753929187724,0.24332526,3850.6,3849.8,0.001]
[1753929187923,0.24332526,3850.5,3849.8,0.001]
[1753929188156,0.03245994,3850.9,3849.8,0.001]
[1753929188354,0.24336186,3850.8,3849.8,0.001]
[1753929188545,0.27582349,3850.7,3849.8,0.001]
[1753929188743,0.24336186,3850.6,3849.8,0.001]
[1753929188934,0.27582517,3850.5,3849.8,0.001]
[1753929189255,0.24336186,3850.4,3849.8,0.001]
[1753929189425,0.03246331,3850.5,3849.8,0.001]
[1753929189617,0.51927056,3850.9,3849.8,0.001]
[1753929189822,0.24340531,3850.8,3849.8,0.001]
[1753929190120,0.24340531,3850.7,3849.8,0.001]
[1753929190320,0.24340531,3850.6,3849.8,0.001]
[1753929190523,0.24340531,3850.5,3849.8,0.001]
[1753929190721,0.24340531,3850.4,3849.8,0.001]
[1753929190926,0.03245994,3850.9,3849.8,0.001]
[1753929191124,0.24342882,3850.8,3849.8,0.001]
[1753929191328,0.24342882,3850.7,3849.8,0.001]
[1753929191634,0.24342882,3850.6,3849.8,0.001]
[1753929191934,0.24342882,3850.5,3849.8,0.001]
[1753929192135,0.24342882,3850.4,3849.8,0.001]
[1753929192371,0.27593165,3850.3,3849.8,0.001]
[1753929192573,0.032465,3850.3,3849.8,0.001]
[1753929193436,0.03246584,3850.2,3849.8,0.001]
[1753929194262,0.24352873,3850.5,3849.8,0.001]
[1753929194462,0.24352873,3850.4,3849.8,0.001]
[1753929194675,0.24352873,3850.3,3849.8,0.001]
[1753929194876,0.03246415,3850.4,3849.8,0.001]
[1753929195550,0.27603181,3850.4,3849.8,0.001]
[1753929195752,0.24356766,3850.3,3849.8,0.001]
[1753929195951,4.86073257,3850.7,3849.8,0.001]
[1753929196152,0.2435752,3850.6,3849.8,0.001]
[1753929196482,0.2435752,3850.5,3849.8,0.001]
[1753929196669,0.27603935,3850.4,3849.8,0.001]
[1753929196840,0.24357655,3850.3,3849.8,0.001]
[1753929197041,0.27604239,3850.2,3849.8,0.001]
[1753929197338,0.24357655,3850.1,3849.8,0.001]
[1753929197565,0.27604408,3850.0,3849.8,0.001]
[1753929197774,0.03246753,3850.0,3849.8,0.001]
[1753929198351,0.27599345,3850.0,3849.8,0.001]
[1753929198673,0.03246753,3850.0,3849.8,0.001]
[1753929198876,0.03246837,3849.9,3849.8,0.001]
[1753929199880,0.03246668,3850.1,3849.8,0.001]
[1753929202776,0.27588228,3850.1,3849.8,0.001]
[1753929202946,0.2434156,3850.0,3849.8,0.001]
[1753929203152,0.27588397,3849.9,3849.8,0.001]
[1753929203456,0.03246837,3849.9,3849.8,0.001]
[1753929204188,0.03246837,3849.9,3849.7,0.001]
[1753929204693,0.24339608,3850.0,3849.7,0.001]
[1753929204992,0.03246584,3850.2,3849.7,0.001]
[1753929205166,0.27586338,3850.2,3849.7,0.001]
[1753929206780,0.24339754,3850.1,3849.7,0.001]
[1753929206968,0.24339754,3850.0,3849.7,0.001]
[1753929207169,0.24339754,3849.9,3849.7,0.001]
[1753929207484,0.03246331,3850.5,3849.7,0.001]
[1753929207787,0.24340763,3850.4,3849.7,0.001]
[1753929207984,0.24340763,3850.3,3849.7,0.001]
[1753929208293,0.27587347,3850.2,3849.7,0.001]
[1753929208478,0.24340763,3850.1,3849.7,0.001]
[1753929208690,0.03246753,3850.0,3849.7,0.001]
[1753929209106,0.48683465,3850.3,3849.7,0.001]
[1753929209301,0.27587347,3850.2,3849.7,0.001]
[1753929209501,0.24340763,3850.1,3849.7,0.001]
[1753929209831,0.03246753,3850.0,3849.7,0.001]
[1753929210040,0.27587516,3850.0,3849.7,0.001]
[1753929210244,0.03246753,3850.0,3849.7,0.001]
[1753929210616,0.03246837,3849.9,3849.7,0.001]
[1753929211736,0.27587431,3850.1,3849.7,0.001]
[1753929212040,0.24340763,3850.0,3849.7,0.001]
[1753929212204,0.24340763,3849.9,3849.7,0.001]
[1753929212400,0.03246921,3849.8,3849.7,0.001]
[1753929214639,0.24341278,3850.1,3849.7,0.001]
[1753929214854,0.24341278,3850.3,3849.7,4.86173257]
[1753929215026,0.24338291,3850.2,3849.7,4.86173257]
[1753929215233,0.002,3851.0,3849.7,4.86173257]
[1753929215411,0.24339689,3850.9,3849.7,4.86173257]
[1753929215741,0.48679378,3850.8,3849.7,0.001]
[1753929215905,0.48679378,3850.7,3849.7,0.001]
[1753929216113,0.24339689,3850.6,3850.1,4.86073257]
[1753929216415,0.002,3851.0,3850.1,4.86073257]
[1753929216416,0.24339689,3850.5,3850.1,4.86073257]
[1753929216611,0.002,3851.0,3850.1,4.86073257]
[1753929216820,0.24337013,3850.9,3850.1,4.86073257]
[1753929217029,0.24337013,3850.8,3850.1,4.86073257]
[1753929217229,0.24337013,3850.7,3850.1,4.86073257]
[1753929217427,0.24337013,3850.6,3850.1,4.86073257]
[1753929217626,0.24337013,3850.5,3850.1,4.86073257]
[1753929217820,0.002,3851.0,3850.1,4.86073257]
[1753929218032,0.24337005,3850.9,3850.1,4.86073257]
[1753929218207,0.24337005,3850.8,3850.1,4.86073257]
[1753929218410,0.24337005,3850.7,3850.1,4.86073257]
[1753929218644,0.24337005,3850.6,3850.1,4.86073257]
[1753929218845,0.002,3851.0,3850.1,4.86073257]
[1753929219023,0.24335624,3850.9,3850.1,4.86073257]
[1753929220048,0.24335624,3850.8,3850.1,4.86073257]
[1753929220243,0.24330169,3850.7,3850.1,4.86073257]
[1753929220449,0.002,3851.0,3850.1,4.86073257]
[1753929225252,0.002,3851.0,3849.7,0.001]
[1753929225253,0.002,3851.0,3850.9,4.86073257]
[1753929225848,0.002,3851.0,3850.5,4.86073257]
[1753929228378,0.002,3851.0,3850.6,0.02596997]
[1753929228763,0.002,3851.0,3850.5,4.86073257]
[1753929230086,0.002,3851.0,3849.9,4.86073257]
[1753929234682,0.002,3851.0,3849.7,0.001]
[1753929235055,0.002,3851.0,3849.9,4.86073257]
[1753929236070,0.002,3851.0,3849.7,0.001]
[1753929236071,0.002,3851.0,3850.9,4.86073257]
[1753929236668,0.24072344,3852.6,3850.9,4.86073257]
[1753929237176,4.86073257,3852.7,3850.9,4.86073257]
[1753929237376,7.19149519,3852.7,3850.5,4.86073257]
[1753929237578,4.86073257,3852.7,3850.5,4.86073257]
[1753929238758,5.18492991,3852.7,3850.5,4.86073257]
[1753929239192,30.0,3852.6,3850.5,4.86073257]
[1753929239485,0.03244646,3852.5,3850.5,4.86073257]
[1753929240258,5.15248514,3852.7,3850.5,4.86073257]
[1753929240688,0.29175257,3852.7,3851.0,4.86073257]
[1753929240857,4.86073257,3853.0,3851.0,4.86073257]
[1753929241063,0.24250938,3852.9,3851.0,4.86073257]
[1753929241466,0.24250938,3852.9,3850.6,4.86073257]
[1753929241973,0.24255181,3852.8,3850.6,4.86073257]
[1753929242296,5.16084381,3853.0,3850.6,4.86073257]
[1753929242595,0.24261303,3852.9,3850.6,4.86073257]
[1753929242991,0.24261303,3852.9,3851.0,4.86073257]
[1753929243778,0.24261303,3852.9,3851.4,4.86073257]
[1753929244706,0.03244393,3852.8,3851.0,4.86073257]
[1753929246314,0.03244477,3852.7,3851.0,4.86073257]
[1753929246512,4.86073257,3852.6,3850.6,4.86073257]
[1753929246813,0.242905,3852.5,3850.5,4.86073257]
[1753929247019,4.86073257,3852.6,3850.5,4.86073257]
[1753929247313,4.86073257,3852.9,3850.5,4.86073257]
[1753929247494,0.24295825,3852.8,3850.5,4.86073257]
[1753929248817,4.86073257,3852.5,3850.3,4.86073257]
[1753929249015,0.27548546,3852.4,3850.3,4.86073257]
[1753929249415,0.24303816,3852.3,3850.3,4.86073257]
[1753929249617,0.03244899,3852.2,3850.3,4.86073257]
[1753929249912,0.27548715,3852.2,3850.3,4.86073257]
[1753929252018,0.24303816,3852.1,3849.9,4.86073257]
[1753929252224,0.27548883,3852.0,3849.9,4.86073257]
[1753929252518,0.24303816,3851.9,3849.9,4.86073257]
[1753929252718,0.27549051,3851.8,3849.9,4.86073257]
[1753929252892,0.03245235,3851.8,3849.9,4.86073257]
[1753929253815,0.27573208,3851.9,3850.3,4.86073257]
[1753929254016,0.27573208,3851.9,3849.8,0.001]
[1753929254017,0.24328057,3851.8,3849.8,4.86173257]
[1753929254192,0.24328057,3851.7,3849.8,4.86173257]
[1753929254393,0.24338995,3851.6,3849.8,4.86173257]
[1753929254723,7.49665539,3852.3,3850.2,4.86073257]
[1753929254924,0.24338676,3852.2,3850.2,4.86073257]
[1753929255085,7.49665539,3852.3,3850.2,4.86073257]
[1753929255718,0.24340083,3852.2,3850.2,4.86073257]
[1753929256097,0.48680168,3852.1,3850.2,4.86073257]
[1753929256290,0.24340084,3852.0,3850.6,4.86073257]
[1753929256491,0.24340084,3851.9,3850.6,4.86073257]
[1753929256691,0.24340084,3851.8,3850.6,4.86073257]
[1753929256924,0.24340084,3851.7,3850.6,4.86073257]
[1753929257124,2.33076262,3852.4,3850.6,4.86073257]
[1753929257422,0.48675206,3852.3,3850.6,4.86073257]
[1753929257627,0.24337603,3852.2,3850.6,4.86073257]
[1753929257807,0.24337603,3852.1,3850.6,4.86073257]
[1753929258010,30.0,3851.9,3849.8,0.001]
[1753929258211,0.24337603,3851.8,3849.8,4.86173257]
[1753929258416,0.24337603,3851.7,3849.8,4.86173257]
[1753929258613,0.24337603,3851.6,3849.8,4.86173257]
[1753929258827,0.24337603,3851.5,3849.8,4.86173257]
[1753929259023,0.24337603,3851.4,3849.8,4.86173257]
[1753929259220,7.19149519,3852.0,3849.8,4.86173257]
[1753929259396,0.27584471,3851.9,3849.8,4.86173257]
[1753929259597,0.48678793,3851.8,3849.8,4.86173257]
[1753929259925,0.48679981,3851.7,3849.8,4.86173257]
[1753929260130,0.48680052,3851.6,3849.8,4.86173257]
[1753929260300,0.2433932,3851.5,3849.8,4.86173257]
[1753929260506,0.2433932,3851.4,3849.8,4.86173257]
[1753929260705,0.2433932,3851.3,3849.8,4.86173257]
[1753929261024,0.2433932,3851.2,3849.8,4.86173257]
[1753929261232,5.16483971,3852.0,3849.8,4.86173257]
[1753929261233,0.27585145,3851.1,3849.8,0.001]
[1753929261420,0.03245825,3851.1,3849.8,0.001]
[1753929261651,0.27577409,3851.5,3849.8,0.001]
[1753929261824,0.24331921,3851.4,3849.8,0.001]
[1753929262021,0.27577578,3851.3,3849.8,0.001]
[1753929262216,0.24331921,3851.2,3849.8,0.001]
[1753929262418,0.03245657,3851.3,3849.8,0.001]
[1753929262620,0.24326461,3851.5,3849.8,0.001]
[1753929263830,0.24326461,3851.5,3849.8,4.86173257]
[1753929264528,0.27569828,3851.4,3849.8,4.86173257]
[1753929264829,0.24324255,3851.3,3849.8,4.86173257]
[1753929265001,0.03245573,3851.4,3849.8,4.86173257]
[1753929265604,0.24324478,3851.5,3849.8,4.86173257]
[1753929265806,0.24324478,3851.4,3849.8,4.86173257]
[1753929266018,0.24324478,3851.3,3849.8,4.86173257]
[1753929266212,4.89318324,3852.0,3849.8,4.86173257]
[1753929266418,0.48640926,3851.9,3849.8,4.86173257]
[1753929266623,0.24320463,3851.8,3849.8,4.86173257]
[1753929266840,0.24320463,3851.7,3849.8,4.86173257]
[1753929267034,4.89318324,3852.0,3849.8,4.86173257]
[1753929267035,0.24320463,3851.6,3849.8,4.86173257]
[1753929267242,0.24320761,3851.5,3849.8,4.86173257]
[1753929267538,0.24320761,3851.4,3849.8,4.86173257]
[1753929267739,0.24320761,3851.3,3849.8,4.86173257]
[1753929267942,0.24320761,3851.2,3849.8,4.86173257]
[1753929268119,5.15996054,3852.0,3849.8,4.86173257]
[1753929268320,0.48633648,3851.9,3849.8,4.86173257]
[1753929268634,0.48633648,3851.8,3849.8,4.86173257]
[1753929268802,0.2431683,3851.7,3849.8,4.86173257]
[1753929269007,0.2431683,3851.6,3849.8,4.86173257]
[1753929269207,0.2431683,3851.5,3849.8,4.86173257]
[1753929269409,0.2431683,3851.4,3849.8,4.86173257]
[1753929269621,0.2431683,3851.3,3849.8,4.86173257]
[1753929269822,0.2431683,3851.2,3849.8,4.86173257]
[1753929270112,4.86073257,3851.7,3849.8,0.001]
[1753929270307,0.24313796,3851.6,3849.8,0.001]
[1753929270526,0.24313796,3851.5,3849.8,0.001]
[1753929270727,0.24313796,3851.4,3849.8,0.001]
[1753929270928,0.24313796,3851.3,3849.8,0.001]
[1753929271137,0.24313796,3851.2,3849.8,0.001]
[1753929271437,0.29922797,3852.0,3849.8,0.001]
[1753929271654,0.48625358,3851.9,3850.0,4.86073257]
[1753929271946,0.48625358,3851.8,3850.0,4.86073257]
[1753929272241,0.24312679,3851.7,3850.0,4.86073257]
[1753929272450,0.24312679,3851.6,3850.0,4.86073257]
[1753929272742,0.24312679,3851.5,3850.0,4.86073257]
[1753929272959,0.24312679,3851.4,3850.0,4.86073257]
[1753929273118,0.24312679,3851.3,3850.0,4.86073257]
[1753929273483,0.03245235,3851.8,3850.0,4.86073257]
[1753929273620,0.24313472,3851.7,3850.0,4.86073257]
[1753929273822,0.24313472,3851.6,3850.0,4.86073257]
[1753929274025,0.24313472,3851.5,3850.0,4.86073257]
[1753929274341,0.24313472,3851.4,3850.0,4.86073257]
[1753929274543,0.24313472,3851.3,3850.0,4.86073257]
[1753929274754,0.03245067,3852.0,3850.0,4.86073257]
[1753929274954,0.24312653,3851.9,3850.0,4.86073257]
[1753929275154,0.48625491,3851.8,3850.0,4.86073257]
[1753929275358,0.24312653,3851.7,3850.0,4.86073257]
[1753929275533,0.24312653,3851.6,3850.0,4.86073257]
[1753929275736,0.24312653,3851.5,3850.0,4.86073257]
[1753929276054,0.24312653,3851.4,3850.3,4.86073257]
[1753929276258,0.3249355,3852.0,3849.8,0.001]
[1753929276259,0.29248483,3852.0,3850.7,4.86073257]
[1753929276462,0.24320622,3851.9,3850.7,4.86073257]
[1753929276684,0.24320622,3851.8,3850.7,4.86073257]
[1753929276864,0.24320622,3851.7,3850.7,4.86073257]
[1753929277034,2.33076262,3852.4,3850.7,4.86073257]
[1753929277357,0.2431964,3852.3,3850.7,4.86073257]
[1753929277569,0.2431964,3852.2,3850.7,4.86073257]
[1753929277791,0.2431964,3852.1,3850.7,4.86073257]
[1753929277932,0.2431964,3852.0,3850.3,4.86073257]
[1753929278259,0.2431964,3852.0,3849.8,0.001]
[1753929278260,0.2431964,3851.9,3850.8,4.86073257]
[1753929278464,0.2431964,3851.9,3849.8,0.001]
[1753929278465,2.33076262,3852.4,3851.2,4.86073257]
[1753929278635,0.2432176,3852.3,3851.2,4.86073257]
[1753929278835,0.2432176,3852.2,3851.2,4.86073257]
[1753929279134,0.2432176,3852.1,3851.2,4.86073257]
[1753929279350,2.33076262,3852.5,3851.2,4.86073257]
[1753929279661,0.24319355,3852.4,3850.8,4.86073257]
[1753929279964,0.24319355,3852.3,3850.8,4.86073257]
[1753929281141,0.27564169,3852.3,3850.8,4.86073257]
[1753929281355,0.24319355,3852.2,3850.8,4.86073257]
[1753929281548,0.24319355,3852.1,3850.8,4.86073257]
[1753929281776,0.24319355,3852.0,3850.8,4.86073257]
[1753929281980,0.03244562,3852.6,3850.8,4.86073257]
[1753929282149,0.24320054,3852.5,3850.8,4.86073257]
[1753929282472,0.27564784,3852.4,3850.8,4.86073257]
[1753929282637,0.24320054,3852.3,3850.8,4.86073257]
[1753929283040,0.24320054,3852.3,3849.9,4.24407068]
[1753929283041,0.27564953,3852.2,3850.4,4.86073257]
[1753929283276,0.24320054,3852.1,3850.4,4.86073257]
[1753929283477,0.27565121,3852.0,3850.4,4.86073257]
[1753929283678,0.03245067,3852.0,3850.4,4.86073257]
[1753929284472,0.03245151,3851.9,3850.4,4.86073257]
[1753929284841,0.03245151,3851.9,3850.0,4.86073257]
[1753929285045,0.03245151,3851.9,3849.9,4.24407068]
[1753929285276,0.24314266,3852.0,3850.0,4.86073257]
[1753929287483,0.27559417,3851.9,3850.0,4.86073257]
[1753929287690,0.24314266,3851.8,3850.0,4.86073257]
[1753929287894,0.24314266,3851.7,3850.0,4.86073257]
[1753929288180,0.24314266,3851.6,3849.8,4.86173257]
[1753929288384,0.24314266,3851.5,3849.8,4.86173257]
[1753929288709,0.03245067,3852.0,3849.8,4.86173257]
[1753929288987,0.24317102,3851.9,3849.8,4.86173257]
[1753929289176,0.24317102,3851.8,3849.8,4.86173257]
[1753929289354,0.24317102,3851.7,3849.8,4.86173257]
[1753929289555,0.24317102,3851.6,3849.8,4.86173257]
[1753929289787,0.2756259,3851.5,3849.8,4.86173257]
[1753929289987,0.24317102,3851.4,3849.8,4.86173257]
[1753929290188,0.03245488,3851.5,3849.8,4.86173257]
[1753929291267,0.27564112,3851.5,3849.8,4.86173257]
[1753929291565,0.24318624,3851.4,3849.8,4.86173257]
[1753929291765,0.03245151,3851.9,3849.8,4.86173257]
[1753929291967,0.24319726,3851.8,3849.8,4.86173257]
[1753929292148,0.24319726,3851.7,3849.8,4.86173257]
[1753929292354,0.24319726,3851.6,3849.8,4.86173257]
[1753929292552,0.24319726,3851.5,3849.8,4.86173257]
[1753929292752,0.03245151,3851.9,3849.8,4.86173257]
[1753929292953,0.24320391,3851.8,3849.8,4.86173257]
[1753929293186,0.24320391,3851.7,3849.8,4.86173257]
[1753929293362,0.03245151,3851.9,3849.8,4.86173257]
[1753929293363,0.24320391,3851.6,3849.8,4.86173257]
[1753929293567,0.24320391,3851.5,3849.8,4.86173257]
[1753929293875,0.24320391,3851.4,3849.8,4.86173257]
[1753929294075,0.03245151,3851.9,3849.8,4.86173257]
[1753929294279,0.24321469,3851.8,3849.8,4.86173257]
[1753929294480,0.24321469,3851.7,3849.8,4.86173257]
[1753929294681,0.27566873,3851.6,3849.8,4.86173257]
[1753929294987,0.24321469,3851.5,3849.8,4.86173257]
[1753929295165,0.24321469,3851.4,3849.8,4.86173257]
[1753929295365,0.03245404,3851.6,3849.8,4.86173257]
[1753929295679,0.03245488,3851.5,3849.8,4.86173257]
[1753929296967,0.24321871,3852.0,3849.8,4.86173257]
[1753929296968,0.03245573,3851.4,3849.8,4.86173257]
[1753929297673,0.03099568,3851.4,3849.8,4.86173257]
[1753929297855,0.24321871,3851.5,3849.8,4.86173257]
[1753929298060,0.27442125,3851.4,3849.8,4.86173257]
[1753929298281,0.03120254,3851.4,3850.1,4.86073257]
[1753929298481,0.51768802,3852.0,3850.1,4.86073257]
[1753929298681,0.24324274,3851.9,3850.1,4.86073257]
[1753929298892,0.27444528,3851.8,3850.1,4.86073257]
[1753929299095,0.24324274,3851.7,3850.1,4.86073257]
[1753929299265,0.27444528,3851.6,3850.1,4.86073257]
[1753929299592,0.24324274,3851.5,3850.1,4.86073257]
[1753929299774,0.27445807,3851.4,3850.1,4.86073257]
[1753929299976,0.03120254,3851.4,3850.1,4.86073257]
[1753929300182,0.51771194,3852.0,3850.1,4.86073257]
[1753929300364,0.2432547,3851.9,3850.1,4.86073257]
[1753929300565,0.27445724,3851.8,3850.1,4.86073257]
[1753929300777,0.2432547,3851.7,3850.1,4.86073257]
[1753929300987,0.27445724,3851.6,3850.1,4.86073257]
[1753929301272,4.86073257,3851.2,3849.8,0.001]
[1753929301587,0.27445724,3851.1,3849.8,0.001]
[1753929302498,0.03120254,3851.1,3849.8,0.001]
[1753929302677,0.51774565,3851.7,3849.8,0.001]
[1753929303013,0.48654578,3851.6,3849.8,0.001]
[1753929303219,0.51774832,3851.5,3849.8,0.001]
[1753929303406,0.48654578,3851.4,3849.8,0.001]
[1753929303715,0.48654578,3851.3,3849.8,0.001]
[1753929304013,0.24327243,3851.2,3849.8,0.001]
[1753929304219,0.24327243,3851.1,3849.8,0.001]
[1753929304415,0.24327243,3851.0,3850.2,4.86073257]
[1753929304613,0.26259113,3852.1,3850.2,4.86073257]
[1753929304614,2.59335375,3852.1,3850.2,4.86073257]
[1753929304819,0.4862999,3852.0,3850.2,4.86073257]
[1753929304998,0.4862999,3851.9,3850.2,4.86073257]
[1753929305192,0.4862999,3851.8,3850.2,4.86073257]
[1753929305397,0.4862999,3851.7,3850.2,4.86073257]
[1753929305600,0.24314995,3851.6,3850.2,4.86073257]
[1753929305808,0.24314995,3851.5,3849.8,4.86173257]
[1753929306000,0.24314995,3851.4,3849.8,4.86173257]
[1753929306199,2.33076262,3851.8,3849.8,4.86173257]
[1753929306200,0.24314995,3851.3,3849.8,4.86173257]
[1753929306491,0.24314995,3851.2,3849.8,4.86173257]
[1753929306788,0.24314995,3851.1,3849.8,4.86173257]
[1753929306989,2.33076262,3851.8,3849.8,4.86173257]
[1753929307186,30.0,3851.6,3849.8,0.001]
[1753929307391,2.33076262,3851.2,3849.8,0.001]
[1753929307614,30.0,3851.0,3849.8,0.001]
[1753929307817,0.51742242,3850.9,3849.8,0.001]
[1753929308021,0.24310994,3850.8,3849.8,0.001]
[1753929308220,0.27431248,3850.7,3849.8,0.001]
[1753929308412,0.24310994,3850.6,3849.8,0.001]
[1753929308611,0.24310994,3850.5,3849.8,0.001]
[1753929308910,0.24310994,3850.4,3849.8,0.001]
[1753929309240,30.0,3851.1,3849.8,0.001]
[1753929309420,0.48590386,3851.0,3849.8,0.001]
[1753929309738,0.24295193,3850.9,3849.8,0.001]
[1753929309891,0.24295193,3850.8,3849.8,0.001]
[1753929310207,0.24295193,3850.7,3849.8,0.001]
[1753929310527,0.24295193,3850.6,3849.8,0.001]
[1753929310690,0.24295193,3850.5,3849.8,0.001]
[1753929310893,0.03120254,3851.2,3849.8,0.001]
[1753929311130,0.24291234,3851.1,3849.8,0.001]
[1753929311306,0.27411488,3851.0,3849.8,0.001]
[1753929311507,0.24291234,3850.9,3849.8,0.001]
[1753929311707,0.03120254,3851.0,3849.8,0.001]
[1753929311708,0.27411488,3850.8,3849.8,0.001]
[1753929311907,0.24291234,3850.7,3849.8,0.001]
[1753929312131,0.27411488,3850.6,3849.8,0.001]
[1753929312299,0.24291234,3850.5,3849.8,0.001]
[1753929312498,30.0,3851.1,3849.8,0.001]
[1753929312700,0.27408644,3851.0,3849.8,0.001]
[1753929312904,0.2428839,3850.9,3849.8,0.001]
[1753929313136,0.27408644,3850.8,3849.8,0.001]
[1753929313338,0.2428839,3850.7,3849.8,0.001]
[1753929313663,0.2428839,3850.6,3849.8,0.001]
[1753929313793,0.2428839,3850.5,3849.8,0.001]
[1753929313997,30.0,3851.2,3849.8,0.001]
[1753929314196,0.48575136,3851.1,3849.8,0.001]
[1753929314427,0.24287568,3851.0,3849.8,0.001]
[1753929314623,0.24287568,3850.9,3849.8,0.001]
[1753929314825,0.24287568,3850.8,3849.8,0.001]
[1753929315031,0.24287568,3850.7,3849.8,0.001]
[1753929315220,0.24287568,3850.6,3849.8,0.001]
[1753929315421,0.24287568,3850.5,3849.8,0.001]
[1753929315610,30.0,3851.2,3849.8,0.001]
[1753929315811,0.48576685,3851.1,3849.8,0.001]
[1753929316012,0.24288337,3851.0,3849.8,0.001]